fUSD/lending_fUSD_20250416
["ID","MTS","AMOUNT","RATE_DAILY","PERIOD"]
[358142627,1744765888591,-702.96,0.00051232,120]
[358142628,1744765888618,-500.0,0.00051232,120]
[358142629,1744765888646,-956.45842544,0.00051232,120]
[358142630,1744765888675,-1281.64,0.00051232,30]
[358142631,1744765888705,-2533.53,0.00051232,90]
[358142632,1744765888739,-500.0,0.00051232,120]
[358142633,1744765888770,-563.05,0.00051232,120]
[358142634,1744765888800,-500.0,0.00051232,120]
[358142635,1744765888829,-627.32,0.00051232,120]
[358142636,1744765888858,-500.0,0.00051232,120]
[358142637,1744765888886,-500.0,0.00051232,120]
[358142638,1744765888915,-500.0,0.00051232,120]
[358142639,1744765888944,-852.17,0.00051232,120]
[358142640,1744765888972,-818.1,0.00051232,120]
[358142641,1744765889000,-1000.0,0.00051232,120]
[358142642,1744765889031,-500.0,0.00051232,120]
[358142643,1744765889060,-500.0,0.00051232,120]
[358142644,1744765889089,-2769.0,0.00051232,35]
[358142645,1744765889119,-1231.0,0.00051232,120]
[358142646,1744765889146,-500.0,0.00051232,120]
[358142647,1744765889176,-500.0,0.00051232,120]
[358142648,1744765889205,-500.0,0.00051232,120]
[358142649,1744765889233,-500.0,0.00051232,120]
[358142650,1744765889261,-282.46967401,0.00051232,120]
[358142651,1744765889290,-500.0,0.00051232,120]
[358142652,1744765889439,-500.0,0.00051232,120]
[358142653,1744765889474,-500.0,0.00051232,120]
[358142654,1744765889504,-500.0,0.00051232,120]
[358142655,1744765889534,-500.0,0.00051232,120]
[358142656,1744765889563,-1181.75,0.00051232,120]
[358142657,1744765889593,-1034.03,0.00051232,120]
[358142658,1744765889622,-500.0,0.00051232,120]
[358142659,1744765889651,-699.07,0.00051232,120]
[358142660,1744765889682,-669.94,0.00051232,120]
[358142661,1744765889713,-500.0,0.00051232,120]
[358142662,1744765889745,-1912.27,0.00051232,120]
[358142663,1744765889776,-500.0,0.00051232,120]
[358142664,1744765889807,-899.37,0.00051232,120]
[358142665,1744765889838,-500.0,0.00051232,120]
[358142666,1744765889868,-500.0,0.00051232,120]
[358142667,1744765889901,-1831.65,0.00051232,120]
[358142668,1744765889934,-500.0,0.00051232,120]
[358142669,1744765889966,-500.0,0.00051232,120]
[358142670,1744765889997,-1505.73,0.00051232,120]
[358142671,1744765890031,-500.0,0.00051232,120]
[358142672,1744765890063,-535.1,0.00051232,120]
[358142673,1744765890096,-767.28,0.00051232,120]
[358142674,1744765890130,-687.0,0.00051232,120]
[358142675,1744765890163,-1013.49,0.00051232,120]
[358142676,1744765890193,-500.0,0.00051232,120]
[358142677,1744765890227,-500.0,0.00051232,120]
[358142678,1744765890259,-1174.39,0.00051232,120]
[358142679,1744765890290,-1000.0,0.00051232,120]
[358142680,1744765890323,-1047.39,0.00051232,120]
[358142681,1744765890355,-826.32,0.00051232,120]
[358142682,1744765890388,-500.0,0.00051232,120]
[358142683,1744765890422,-150.0,0.00051238,30]
[358142684,1744765890454,-235.0,0.0005124,30]
[358142685,1744765890484,-209.0,0.0005124,30]
[358142686,1744765890514,-209.0,0.0005124,30]
[358142687,1744765890544,-305.77080733,0.00051252,30]
[358142688,1744765890575,-214.54507832,0.00051252,30]
[358142689,1744765890605,-423.0,0.00051259,60]
[358142690,1744765890633,-423.0,0.00051259,60]
[358142691,1744765890662,-423.0,0.00051259,60]
[358142692,1744765890691,-423.0,0.00051259,60]
[358142693,1744765890722,-423.0,0.00051259,60]
[358142694,1744765890752,-423.0,0.00051259,60]
[358142695,1744765890783,-423.0,0.00051259,60]
[358142696,1744765890813,-423.0,0.00051259,60]
[358142697,1744765890843,-423.0,0.00051259,60]
[358142698,1744765890872,-423.0,0.00051259,60]
[358142699,1744765890901,-423.0,0.00051259,60]
[358142700,1744765890932,-423.0,0.00051259,60]
[358142701,1744765890962,-423.0,0.00051259,60]
[358142702,1744765890991,-423.0,0.00051259,60]
[358142703,1744765891023,-560.0,0.00051263,60]
[358142704,1744765891058,-560.0,0.00051263,60]
[358142705,1744765891089,-560.0,0.00051263,60]
[358142706,1744765891119,-560.0,0.00051263,60]
[358142707,1744765891147,-560.0,0.00051263,60]
[358142708,1744765891179,-560.0,0.00051263,60]
[358142709,1744765891209,-560.0,0.00051263,60]
[358142710,1744765891240,-560.0,0.00051263,60]
[358142711,1744765891271,-560.0,0.00051263,60]
[358142712,1744765891301,-560.0,0.00051263,60]
[358142713,1744765891331,-560.0,0.00051263,60]
[358142714,1744765891361,-560.0,0.00051263,60]
[358142715,1744765891390,-560.0,0.00051263,60]
[358142716,1744765891420,-560.0,0.00051263,60]
[358142717,1744765891450,-423.0,0.00051273,60]
[358142718,1744765891478,-423.0,0.00051273,60]
[358142719,1744765891507,-423.0,0.00051273,60]
[358142720,1744765891535,-423.0,0.00051273,60]
[358142721,1744765891724,-423.0,0.00051273,60]
[358142722,1744765891757,-423.0,0.00051273,60]
[358142723,1744765891789,-423.0,0.00051273,60]
[358142724,1744765891820,-423.0,0.00051273,60]
[358142725,1744765891850,-423.0,0.00051273,60]
[358142726,1744765891880,-423.0,0.00051273,60]
[358142727,1744765891909,-423.0,0.00051273,60]
[358142728,1744765891942,-423.0,0.00051273,60]
[358142729,1744765891971,-423.0,0.00051273,60]
[358142730,1744765892002,-423.0,0.00051273,60]
[358142731,1744765892034,-560.0,0.00051277,60]
[358142732,1744765892063,-560.0,0.00051277,60]
[358142733,1744765892093,-560.0,0.00051277,60]
[358142734,1744765892125,-560.0,0.00051277,60]
[358142735,1744765892154,-560.0,0.00051277,60]
[358142736,1744765892184,-560.0,0.00051277,60]
[358142737,1744765892213,-560.0,0.00051277,60]
[358142738,1744765892243,-560.0,0.00051277,60]
[358142739,1744765892273,-560.0,0.00051277,60]
[358142740,1744765892304,-560.0,0.00051277,60]
[358142741,1744765892332,-560.0,0.00051277,60]
[358142742,1744765892363,-560.0,0.00051277,60]
[358142743,1744765892392,-560.0,0.00051277,60]
[358142744,1744765892422,-560.0,0.00051277,60]
[358142745,1744765892451,-423.0,0.00051287,60]
[358142746,1744765892479,-423.0,0.00051287,60]
[358142747,1744765892508,-423.0,0.00051287,60]
[358142748,1744765892537,-423.0,0.00051287,60]
[358142749,1744765892566,-423.0,0.00051287,60]
[358142750,1744765892597,-423.0,0.00051287,60]
[358142751,1744765892626,-423.0,0.00051287,60]
[358142752,1744765892655,-423.0,0.00051287,60]
[358142753,1744765892687,-423.0,0.00051287,60]
[358142754,1744765892718,-423.0,0.00051287,60]
[358142755,1744765892751,-423.0,0.00051287,60]
[358142756,1744765892783,-423.0,0.00051287,60]
[358142757,1744765892815,-423.0,0.00051287,60]
[358142758,1744765892852,-423.0,0.00051287,60]
[358142759,1744765892884,-560.0,0.00051291,60]
[358142760,1744765892916,-560.0,0.00051291,60]
[358142761,1744765892949,-560.0,0.00051291,60]
[358142762,1744765892980,-560.0,0.00051291,60]
[358142763,1744765893011,-560.0,0.00051291,60]
[358142764,1744765893043,-560.0,0.00051291,60]
[358142765,1744765893077,-560.0,0.00051291,60]
[358142766,1744765893112,-560.0,0.00051291,60]
[358142767,1744765893149,-560.0,0.00051291,60]
[358142768,1744765893183,-560.0,0.00051291,60]
[358142769,1744765893217,-560.0,0.00051291,60]
[358142770,1744765893250,-560.0,0.00051291,60]
[358142771,1744765893282,-560.0,0.00051291,60]
[358142772,1744765893316,-560.0,0.00051291,60]
[358142773,1744765893348,-150.0,0.00051293,30]
[358142774,1744765893378,-150.0,0.00051293,30]
[358142775,1744765893410,-150.0,0.00051297,30]
[358142776,1744765893442,-423.0,0.00051301,60]
[358142777,1744765893474,-423.0,0.00051301,60]
[358142778,1744765893507,-423.0,0.00051301,60]
[358142779,1744765893538,-423.0,0.00051301,60]
[358142780,1744765893569,-423.0,0.00051301,60]
[358142781,1744765893599,-423.0,0.00051301,60]
[358142782,1744765893631,-423.0,0.00051301,60]
[358142783,1744765893661,-423.0,0.00051301,60]
[358142784,1744765893693,-423.0,0.00051301,60]
[358142785,1744765893727,-423.0,0.00051301,60]
[358142786,1744765893760,-423.0,0.00051301,60]
[358142787,1744765893793,-423.0,0.00051301,60]
[358142788,1744765893973,-423.0,0.00051301,60]
[358142789,1744765894007,-423.0,0.00051301,60]
[358142790,1744765894042,-560.0,0.00051305,60]
[358142791,1744765894077,-560.0,0.00051305,60]
[358142792,1744765894112,-560.0,0.00051305,60]
[358142793,1744765894145,-560.0,0.00051305,60]
[358142794,1744765894179,-560.0,0.00051305,60]
[358142795,1744765894213,-560.0,0.00051305,60]
[358142796,1744765894247,-560.0,0.00051305,60]
[358142797,1744765894279,-560.0,0.00051305,60]
[358142798,1744765894314,-560.0,0.00051305,60]
[358142799,1744765894346,-560.0,0.00051305,60]
[358142800,1744765894380,-560.0,0.00051305,60]
[358142801,1744765894413,-560.0,0.00051305,60]
[358142802,1744765894447,-560.0,0.00051305,60]
[358142803,1744765894479,-560.0,0.00051305,60]
[358142804,1744765894511,-305.77080733,0.00051307,30]
[358142805,1744765894544,-214.54507832,0.00051307,30]
[358142806,1744765894575,-423.0,0.00051315,60]
[358142807,1744765894606,-423.0,0.00051315,60]
[358142808,1744765894637,-423.0,0.00051315,60]
[358142809,1744765894669,-423.0,0.00051315,60]
[358142810,1744765894700,-423.0,0.00051315,60]
[358142811,1744765894735,-423.0,0.00051315,60]
[358142812,1744765894768,-423.0,0.00051315,60]
[358142813,1744765894800,-423.0,0.00051315,60]
[358142814,1744765894831,-423.0,0.00051315,60]
[358142815,1744765894863,-423.0,0.00051315,60]
[358142816,1744765894895,-423.0,0.00051315,60]
[358142817,1744765894928,-423.0,0.00051315,60]
[358142818,1744765894962,-423.0,0.00051315,60]
[358142819,1744765894995,-423.0,0.00051315,60]
[358142820,1744765895028,-560.0,0.00051319,60]
[358142821,1744765895064,-560.0,0.00051319,60]
[358142822,1744765895097,-560.0,0.00051319,60]
[358142823,1744765895130,-560.0,0.00051319,60]
[358142824,1744765895161,-560.0,0.00051319,60]
[358142825,1744765895193,-560.0,0.00051319,60]
[358142826,1744765895225,-560.0,0.00051319,60]
[358142827,1744765895256,-560.0,0.00051319,60]
[358142828,1744765895286,-560.0,0.00051319,60]
[358142829,1744765895316,-560.0,0.00051319,60]
[358142830,1744765895345,-560.0,0.00051319,60]
[358142831,1744765895374,-560.0,0.00051319,60]
[358142832,1744765895403,-560.0,0.00051319,60]
[358142833,1744765895433,-560.0,0.00051319,60]
[358142834,1744765895462,-150.0,0.00051355,30]
[358142835,1744765895492,-447.34,0.00051357,30]
[358142836,1744765895520,-349.47,0.00051357,30]
[358142837,1744765895548,-447.34,0.00051357,30]
[358142838,1744765895577,-349.47,0.00051357,30]
[358142839,1744765895605,-445.36,0.00051357,30]
[358142840,1744765895634,-344.53,0.00051357,30]
[358142841,1744765895661,-305.77080733,0.00051362,30]
[358142842,1744765895691,-214.54507832,0.00051362,30]
[358142843,1744765895719,-150.0,0.00051369,30]
[358142844,1744765895749,-3796.63484626,0.000514,120]
[358142845,1744765895777,-500.0,0.00051403,120]
[358142846,1744765895807,-427.18028085,0.00051408,120]
[358142847,1744765895835,-150.0,0.00051413,30]
[358142848,1744765895865,-305.77080733,0.00051418,30]
[358142849,1744765895895,-214.54507832,0.00051418,30]
[358142850,1744765895924,-150.0,0.00051445,30]
[358142851,1744765895957,-150.0,0.00051445,30]
[358142852,1744765896131,-150.0,0.00051471,30]
[358142853,1744765896163,-305.77080733,0.00051473,30]
[358142854,1744765896195,-214.54507832,0.00051473,30]
[358142855,1744765896226,-702.96,0.00051506,120]
[358142856,1744765896256,-500.0,0.00051506,120]
[358142857,1744765896285,-500.0,0.00051506,120]
[358142858,1744765896319,-500.0,0.00051506,120]
[358142859,1744765896349,-1281.64,0.00051506,30]
[358142860,1744765896379,-2533.53,0.00051506,90]
[358142861,1744765896408,-500.0,0.00051506,120]
[358142862,1744765896437,-563.05,0.00051506,120]
[358142863,1744765896467,-500.0,0.00051506,120]
[358142864,1744765896496,-627.32,0.00051506,120]
[358142865,1744765896526,-500.0,0.00051506,120]
[358142866,1744765896555,-500.0,0.00051506,120]
[358142867,1744765896584,-500.0,0.00051506,120]
[358142868,1744765896614,-852.17,0.00051506,120]
[358142869,1744765896643,-818.1,0.00051506,120]
[358142870,1744765896674,-1000.0,0.00051506,120]
[358142871,1744765896706,-500.0,0.00051506,120]
[358142872,1744765896737,-500.0,0.00051506,120]
[358142873,1744765896770,-2769.0,0.00051506,35]
[358142874,1744765896801,-1231.0,0.00051506,120]
[358142875,1744765896832,-500.0,0.00051506,120]
[358142876,1744765896864,-500.0,0.00051506,120]
[358142877,1744765896896,-500.0,0.00051506,120]
[358142878,1744765896928,-500.0,0.00051506,120]
[358142879,1744765896959,-500.0,0.00051506,120]
[358142880,1744765896990,-500.0,0.00051506,120]
[358142881,1744765897038,-500.0,0.00051506,120]
[358142882,1744765897072,-610.49346381,0.00051506,120]
[358142883,1744765897106,-1181.75,0.00051506,120]
[358142884,1744765897139,-1034.03,0.00051506,120]
[358142885,1744765897171,-500.0,0.00051506,120]
[358142886,1744765897203,-699.07,0.00051506,120]
[358142887,1744765897236,-669.94,0.00051506,120]
[358142888,1744765897269,-500.0,0.00051506,120]
[358142889,1744765897301,-1912.27,0.00051506,120]
[358142890,1744765897333,-500.0,0.00051506,120]
[358142891,1744765897365,-899.37,0.00051506,120]
[358142892,1744765897396,-500.0,0.00051506,120]
[358142893,1744765897427,-500.0,0.00051506,120]
[358142894,1744765897461,-500.0,0.00051506,120]
[358142895,1744765897493,-1831.65,0.00051506,120]
[358142896,1744765897525,-500.0,0.00051506,120]
[358142897,1744765897557,-1505.73,0.00051506,120]
[358142898,1744765897590,-500.0,0.00051506,120]
[358142899,1744765897622,-535.1,0.00051506,120]
[358142900,1744765897654,-767.28,0.00051506,120]
[358142901,1744765897687,-687.0,0.00051506,120]
[358142902,1744765897721,-1013.49,0.00051506,120]
[358142903,1744765897756,-500.0,0.00051506,120]
[358142904,1744765897791,-500.0,0.00051506,120]
[358142905,1744765897825,-1174.39,0.00051506,120]
[358142906,1744765897857,-1000.0,0.00051506,120]
[358142907,1744765897892,-1047.39,0.00051506,120]
[358142908,1744765897924,-826.32,0.00051506,120]
[358142909,1744765897956,-500.0,0.00051506,120]
[358142910,1744765897988,-150.0,0.00051522,30]
[358142911,1744765898019,-305.77080733,0.00051528,30]
[358142912,1744765898052,-214.54507832,0.00051528,30]
[358142913,1744765898083,-150.0,0.0005153,30]
[358142914,1744765898316,-305.77080733,0.00051584,30]
[358142915,1744765898351,-214.54507832,0.00051584,30]
[358142916,1744765898382,-150.0,0.00051588,30]
[358142917,1744765898413,-150.0,0.00051598,30]
[358142918,1744765898445,-150.0,0.00051598,30]
[358142919,1744765898476,-305.77080733,0.00051639,30]
[358142920,1744765898507,-214.54507832,0.00051639,30]
[358142921,1744765898541,-150.0,0.00051646,30]
[358142922,1744765898572,-150.0,0.00051674,30]
[358142923,1744765898603,-305.77080733,0.00051695,30]
[358142924,1744765898635,-214.54507832,0.00051695,30]
[358142925,1744765898667,-150.0,0.00051705,30]
[358142926,1744765898700,-305.77080733,0.0005175,30]
[358142927,1744765898735,-214.54507832,0.0005175,30]
[358142928,1744765898769,-150.0,0.0005175,30]
[358142929,1744765898802,-150.0,0.0005175,30]
[358142930,1744765898834,-150.0,0.00051763,30]
[358142931,1744765898867,-702.96,0.0005178,120]
[358142932,1744765898899,-500.0,0.0005178,120]
[358142933,1744765898931,-1281.64,0.0005178,30]
[358142934,1744765898964,-2533.53,0.0005178,90]
[358142935,1744765899003,-500.0,0.0005178,120]
[358142936,1744765899037,-563.05,0.0005178,120]
[358142937,1744765899070,-500.0,0.0005178,120]
[358142938,1744765899102,-627.32,0.0005178,120]
[358142939,1744765899136,-500.0,0.0005178,120]
[358142940,1744765899169,-500.0,0.0005178,120]
[358142941,1744765899202,-500.0,0.0005178,120]
[358142942,1744765899234,-852.17,0.0005178,120]
[358142943,1744765899267,-818.1,0.0005178,120]
[358142944,1744765899299,-1000.0,0.0005178,120]
[358142945,1744765899332,-500.0,0.0005178,120]
[358142946,1744765899364,-500.0,0.0005178,120]
[358142947,1744765899398,-2769.0,0.0005178,35]
[358142948,1744765899431,-1231.0,0.0005178,120]
[358142949,1744765899464,-500.0,0.0005178,120]
[358142950,1744765899497,-500.0,0.0005178,120]
[358142951,1744765899528,-500.0,0.0005178,120]
[358142952,1744765899561,-500.0,0.0005178,120]
[358142953,1744765899592,-500.0,0.0005178,120]
[358142954,1744765899626,-500.0,0.0005178,120]
[358142955,1744765899659,-500.0,0.0005178,120]
[358142956,1744765899692,-448.6,0.0005178,120]
[358142957,1744765899739,-1034.03,0.0005178,120]
[358142958,1744765899775,-500.0,0.0005178,120]
[358142959,1744765899810,-699.07,0.0005178,120]
[358142960,1744765899844,-669.94,0.0005178,120]
[358142961,1744765899878,-500.0,0.0005178,120]
[358142962,1744765899911,-1912.27,0.0005178,120]
[358142963,1744765899947,-500.0,0.0005178,120]
[358142964,1744765899980,-899.37,0.0005178,120]
[358142965,1744765900013,-425.02892608,0.0005178,120]
[358142966,1744765900049,-500.0,0.0005178,120]
[358142967,1744765900084,-342.35323917,0.0005178,120]
[358142968,1744765900118,-1831.65,0.0005178,120]
[358142969,1744765900149,-500.0,0.0005178,120]
[358142970,1744765900182,-1505.73,0.0005178,120]
[358142971,1744765900215,-500.0,0.0005178,120]
[358142972,1744765900248,-535.1,0.0005178,120]
[358142973,1744765900279,-767.28,0.0005178,120]
[358142974,1744765900467,-687.0,0.0005178,120]
[358142975,1744765900504,-1013.49,0.0005178,120]
[358142976,1744765900537,-208.55,0.0005178,120]
[358142977,1744765900569,-500.0,0.0005178,120]
[358142978,1744765900601,-1174.39,0.0005178,120]
[358142979,1744765900633,-1103.58695557,0.0005178,120]
[358142980,1744765900666,-1047.39,0.0005178,120]
[358142981,1744765900698,-826.32,0.0005178,120]
[358142982,1744765900732,-500.0,0.0005178,120]
[358142983,1744765900764,-2110.0,0.00051794,30]
[358142984,1744765900796,-183.71214,0.000518,120]
[358142985,1744765900829,-305.77080733,0.00051805,30]
[358142986,1744765900861,-214.54507832,0.00051805,30]
[358142987,1744765900892,-150.0,0.00051821,30]
[358142988,1744765900925,-150.0,0.00051826,30]
[358142989,1744765900956,-305.77080733,0.00051861,30]
[358142990,1744765900987,-214.54507832,0.00051861,30]
[358142991,1744765901019,-150.0,0.00051863,120]
[358142992,1744765901053,-666.04,0.00051877,120]
[358142993,1744765901085,-150.0,0.00051879,30]
[358142994,1744765901117,-150.0,0.00051902,30]
[358142995,1744765901148,-150.0,0.00051902,30]
[358142996,1744765901179,-305.77080733,0.00051916,30]
[358142997,1744765901209,-214.54507832,0.00051916,30]
[358142998,1744765901239,-150.0,0.00051938,30]
[358142999,1744765901275,-305.77080733,0.00051971,30]
[358143000,1744765901306,-214.54507832,0.00051971,30]
[358143001,1744765901338,-150.0,0.00051978,30]
[358143002,1744765901369,-150.0,0.00051996,30]
[358143003,1744765901402,-1000000.0,0.00052,120]
[358143004,1744765901434,-432774.52804831,0.00052,120]
[358143005,1744765901790,250.0,0.00017175,2]
[358143006,1744765906259,-181.63,0.0004199,120]
[358143007,1744765906320,-500.0,0.00049315,120]
[358143008,1744765906352,-507.42,0.00049589,120]
[358143009,1744765906386,-256.47838056,0.00050277,120]
[358143010,1744765906417,-537.4996551,0.00050277,120]
[358143011,1744765906449,-500.0,0.00051232,120]
[358143012,1744765906480,-500.0,0.00051506,120]
[358143013,1744765906511,-500.0,0.0005178,120]
[358143014,1744765906544,-567225.47195169,0.00052,120]
[358143015,1744765906577,-1000000.0,0.00052,120]
[358143016,1744765906609,-1000000.0,0.00052,120]
[358143017,1744765906640,-1000000.0,0.00052,120]
[358143018,1744765906810,-1000000.0,0.00052,120]
[358143019,1744765906845,-1000000.0,0.00052,120]
[358143020,1744765906878,-429291.50001265,0.00052,120]
[358143021,1744765914230,-300.0,0.00049315,120]
[358143022,1744765914264,-776.1,0.0005,30]
[358143023,1744765914300,-570708.49998735,0.00052,120]
[358143024,1744765914331,-770.08716838,0.00052,30]
[358143025,1744765914364,-1000000.0,0.00052,120]
[358143026,1744765914397,-1000000.0,0.00052,120]
[358143027,1744765914427,-468.46932045,0.00052,120]
[358143028,1744765914457,-34401.74479273,0.00052,40]
[358143029,1744765914487,-2000.0,0.00052,120]
[358143030,1744765914518,-244.13646622,0.00052,107]
[358143031,1744765914548,-208734.16647865,0.00052,120]
[358143032,1744765914579,-4463.0,0.00052,120]
[358143033,1744765914609,-4463.0,0.00052,120]
[358143034,1744765914640,-305.77080733,0.00052027,30]
[358143035,1744765915035,-214.54507832,0.00052027,30]
[358143036,1744765915071,-702.96,0.00052054,120]
[358143037,1744765915102,-623.75,0.00052054,120]
[358143038,1744765915133,-152.69344312,0.00052054,120]
[358143039,1744765915163,-500.0,0.00052054,120]
[358143040,1744765915192,-1281.64,0.00052054,30]
[358143041,1744765915223,-2533.53,0.00052054,90]
[358143042,1744765915254,-500.0,0.00052054,120]
[358143043,1744765915284,-563.05,0.00052054,120]
[358143044,1744765915314,-500.0,0.00052054,120]
[358143045,1744765915344,-627.32,0.00052054,120]
[358143046,1744765915373,-500.0,0.00052054,120]
[358143047,1744765915401,-500.0,0.00052054,120]
[358143048,1744765915432,-500.0,0.00052054,120]
[358143049,1744765915462,-852.17,0.00052054,120]
[358143050,1744765915491,-818.1,0.00052054,120]
[358143051,1744765915520,-1000.0,0.00052054,120]
[358143052,1744765915550,-500.0,0.00052054,120]
[358143053,1744765915580,-500.0,0.00052054,120]
[358143054,1744765915611,-2769.0,0.00052054,35]
[358143055,1744765915641,-1231.0,0.00052054,120]
[358143056,1744765915671,-500.0,0.00052054,120]
[358143057,1744765915704,-500.0,0.00052054,120]
[358143058,1744765915740,-536.64,0.00052054,120]
[358143059,1744765915774,-500.0,0.00052054,120]
[358143060,1744765915808,-500.0,0.00052054,120]
[358143061,1744765915841,-500.0,0.00052054,120]
[358143062,1744765915874,-379.78,0.00052054,120]
[358143063,1744765915907,-1034.03,0.00052054,120]
[358143064,1744765915938,-500.0,0.00052054,120]
[358143065,1744765915971,-699.07,0.00052054,120]
[358143066,1744765916004,-669.94,0.00052054,120]
[358143067,1744765916037,-500.0,0.00052054,120]
[358143068,1744765916070,-1912.27,0.00052054,120]
[358143069,1744765916101,-500.0,0.00052054,120]
[358143070,1744765916133,-899.37,0.00052054,120]
[358143071,1744765916165,-500.0,0.00052054,120]
[358143072,1744765916196,-1831.65,0.00052054,120]
[358143073,1744765916226,-500.0,0.00052054,120]
[358143074,1744765916256,-1505.73,0.00052054,120]
[358143075,1744765916293,-500.0,0.00052054,120]
[358143076,1744765916325,-535.1,0.00052054,120]
[358143077,1744765916358,-767.28,0.00052054,120]
[358143078,1744765916389,-687.0,0.00052054,120]
[358143079,1744765916420,-1013.49,0.00052054,120]
[358143080,1744765916454,-500.0,0.00052054,120]
[358143081,1744765916485,-1174.39,0.00052054,120]
[358143082,1744765916518,-1047.39,0.00052054,120]
[358143083,1744765916549,-826.32,0.00052054,120]
[358143084,1744765916580,-500.0,0.00052054,120]
[358143085,1744765916611,-500.0,0.00052054,120]
[358143086,1744765916640,-1068.0,0.00052054,30]
[358143087,1744765916670,-1068.0,0.00052054,30]
[358143088,1744765916700,-150.0,0.00052054,30]
[358143089,1744765916734,-150.0,0.00052054,30]
[358143090,1744765916766,-150.0,0.00052054,30]
[358143091,1744765916798,-787.89376634,0.00052055,120]
[358143092,1744765916830,-305.77080733,0.00052082,30]
[358143093,1744765916862,-214.54507832,0.00052082,30]
[358143094,1744765916892,-150.0,0.00052113,30]
[358143095,1744765916923,-150.0,0.0005213,30]
[358143096,1744765916956,-305.77080733,0.00052137,30]
[358143097,1744765916987,-214.54507832,0.00052137,30]
[358143098,1744765917022,-150.0,0.00052171,30]
[358143099,1744765917058,-447.34,0.00052182,30]
[358143100,1744765917090,-790.91,0.00052182,30]
[358143101,1744765917123,-150.0,0.00052182,30]
[358143102,1744765917153,-365.0,0.00052182,30]
[358143103,1744765917183,-300.41,0.00052182,30]
[358143104,1744765917338,-150.0,0.00052182,30]
[358143105,1744765917378,-447.34,0.00052182,30]
[358143106,1744765917410,-150.0,0.00052182,30]
[358143107,1744765917441,-150.0,0.00052182,30]
[358143108,1744765917472,-1803.98,0.00052182,30]
[358143109,1744765917503,-150.0,0.00052182,30]
[358143110,1744765917534,-449.79,0.00052182,30]
[358143111,1744765917565,-150.0,0.00052182,30]
[358143112,1744765917595,-349.47,0.00052182,30]
[358143113,1744765917625,-791.73,0.00052182,30]
[358143114,1744765917655,-150.0,0.00052182,30]
[358143115,1744765917685,-305.77080733,0.00052193,30]
[358143116,1744765917715,-214.54507832,0.00052193,30]
[358143117,1744765917749,-1000.0,0.00052204,120]
[358143118,1744765917781,-150.0,0.00052207,30]
[358143119,1744765917812,-150.0,0.00052207,30]
[358143120,1744765917843,-150.0,0.00052229,30]
[358143121,1744765917872,-305.77080733,0.00052248,30]
[358143122,1744765917903,-214.54507832,0.00052248,30]
[358143123,1744765917934,-150.0,0.00052283,30]
[358143124,1744765917964,-150.0,0.00052287,30]
[358143125,1744765917996,-2110.0,0.00052294,30]
[358143126,1744765918025,-305.77080733,0.00052303,30]